[Event "*** SCC Grand Prix: Titled Tuesday Blitz"]
[Site "Chess.com"]
[Date "2020.08.11"]
[Round "6"]
[White "wild_cat99"]
[Black "ace_mar"]
[Result "1-0"]
[WhiteElo "2633"]
[BlackElo "2461"]
[TimeControl "180+1"]
[EndTime "11:06:49 PDT"]
[Termination "wild_cat99 won by checkmate"]

1. Nf3 {[%clk 0:03:00.9]} 1... d5 {[%clk 0:03:00]} 2. e3 {[%clk 0:03:00.7]} 2...
Nf6 {[%clk 0:02:59.7]} 3. c4 {[%clk 0:03:00.8]} 3... e6 {[%clk 0:03:00.1]} 4. b3
{[%clk 0:03:00.6]} 4... Be7 {[%clk 0:02:58.8]} 5. Bb2 {[%clk 0:03:00.7]} 5...
O-O {[%clk 0:02:58.7]} 6. Nc3 {[%clk 0:02:56.8]} 6... c5 {[%clk 0:02:55.8]} 7.
cxd5 {[%clk 0:02:54.5]} 7... Nxd5 {[%clk 0:02:55.2]} 8. d4 {[%clk 0:02:51.5]}
8... Nxc3 {[%clk 0:02:51.6]} 9. Bxc3 {[%clk 0:02:52.4]} 9... b6 {[%clk
0:02:48.5]} 10. Bd3 {[%clk 0:02:40.5]} 10... Bb7 {[%clk 0:02:46.8]} 11. O-O
{[%clk 0:02:40.8]} 11... Nc6 {[%clk 0:02:40.5]} 12. Be4 {[%clk 0:02:31.7]} 12...
Qc7 {[%clk 0:02:33.1]} 13. Rc1 {[%clk 0:02:31.2]} 13... Rfd8 {[%clk 0:02:27.7]}
14. Qe2 {[%clk 0:02:13.5]} 14... cxd4 {[%clk 0:02:22.9]} 15. Nxd4 {[%clk
0:02:03.6]} 15... Nxd4 {[%clk 0:02:20.1]} 16. Bxd4 {[%clk 0:02:04.5]} 16... Qd7
{[%clk 0:02:19.7]} 17. Qg4 {[%clk 0:01:46.2]} 17... Bf8 {[%clk 0:02:18]} 18. Bb1
{[%clk 0:01:46.3]} 18... Rac8 {[%clk 0:01:58.2]} 19. Qh4 {[%clk 0:01:29]} 19...
h6 {[%clk 0:01:53.6]} 20. Qg3 {[%clk 0:01:13.1]} 20... Ba6 {[%clk 0:01:36.3]}
21. Rfd1 {[%clk 0:01:11]} 21... Rxc1 {[%clk 0:01:24.3]} 22. Rxc1 {[%clk
0:01:11.9]} 22... Rc8 {[%clk 0:01:24.3]} 23. Rd1 {[%clk 0:01:06.7]} 23... Bb7
{[%clk 0:01:13.9]} 24. h3 {[%clk 0:00:58.9]} 24... Re8 {[%clk 0:01:02.4]} 25. f4
{[%clk 0:00:54.7]} 25... Rc8 {[%clk 0:00:45.6]} 26. Bd3 {[%clk 0:00:48.1]} 26...
Qd5 {[%clk 0:00:38.7]} 27. Qg4 {[%clk 0:00:38.3]} 27... Qd7 {[%clk 0:00:19.9]}
28. f5 {[%clk 0:00:32.4]} 28... e5 {[%clk 0:00:10.9]} 29. Bxe5 {[%clk 0:00:31]}
29... Qd5 {[%clk 0:00:10.5]} 30. Bd4 {[%clk 0:00:24]} 30... Rc6 {[%clk
0:00:07.4]} 31. f6 {[%clk 0:00:21.8]} 31... Rd6 {[%clk 0:00:02.1]} 32. fxg7
{[%clk 0:00:20.5]} 32... Be7 {[%clk 0:00:02.5]} 33. Bh7+ {[%clk 0:00:19.9]}
33... Kxh7 {[%clk 0:00:01.9]} 34. g8=Q# {[%clk 0:00:20.8]} 1-0

[Event "*** SCC Grand Prix: Titled Tuesday Blitz"]
[Site "Chess.com"]
[Date "2020.08.11"]
[Round "6"]
[White "AleksanderHnydiuk"]
[Black "Sanyura"]
[Result "0-1"]
[WhiteElo "2550"]
[BlackElo "2408"]
[TimeControl "180+1"]
[EndTime "11:06:50 PDT"]
[Termination "Sanyura won on time"]

1. e4 {[%clk 0:03:00.9]} 1... c5 {[%clk 0:02:59.1]} 2. Nf3 {[%clk 0:03:00.4]}
2... e6 {[%clk 0:02:59.6]} 3. d4 {[%clk 0:03:00.4]} 3... cxd4 {[%clk 0:03:00.5]}
4. Nxd4 {[%clk 0:03:01]} 4... Nf6 {[%clk 0:03:00.6]} 5. Nc3 {[%clk 0:03:00.8]}
5... Nc6 {[%clk 0:03:01.2]} 6. Ndb5 {[%clk 0:02:57.1]} 6... Bc5 {[%clk
0:03:00.1]} 7. Bf4 {[%clk 0:02:50.7]} 7... O-O {[%clk 0:02:58.5]} 8. Bd6 {[%clk
0:02:50.6]} 8... Bxd6 {[%clk 0:02:53.8]} 9. Nxd6 {[%clk 0:02:49.6]} 9... Qb6
{[%clk 0:02:48.8]} 10. Nc4 {[%clk 0:02:31.9]} 10... Qd8 {[%clk 0:02:42.1]} 11.
Qd6 {[%clk 0:02:23.2]} 11... a6 {[%clk 0:02:36.2]} 12. O-O-O {[%clk 0:02:18.4]}
12... b5 {[%clk 0:02:34.2]} 13. Ne5 {[%clk 0:02:15.2]} 13... Qa5 {[%clk
0:02:16.3]} 14. a3 {[%clk 0:01:27.9]} 14... Bb7 {[%clk 0:01:49.7]} 15. f3 {[%clk
0:01:17.4]} 15... Rac8 {[%clk 0:01:31.1]} 16. Kb1 {[%clk 0:01:11.9]} 16... Nxe5
{[%clk 0:01:13]} 17. Qxe5 {[%clk 0:01:11.3]} 17... d5 {[%clk 0:01:06.9]} 18.
exd5 {[%clk 0:00:53.7]} 18... Nxd5 {[%clk 0:01:07.8]} 19. Nxd5 {[%clk
0:00:51.7]} 19... Bxd5 {[%clk 0:01:08.7]} 20. Bd3 {[%clk 0:00:46.7]} 20... b4
{[%clk 0:01:07.7]} 21. Qe1 {[%clk 0:00:38.7]} 21... Rb8 {[%clk 0:01:03.7]} 22.
Be4 {[%clk 0:00:23]} 22... Bxe4 {[%clk 0:00:45.7]} 23. fxe4 {[%clk 0:00:23.9]}
23... Qc5 {[%clk 0:00:45.5]} 24. axb4 {[%clk 0:00:19.1]} 24... Rxb4 {[%clk
0:00:46.4]} 25. Rd3 {[%clk 0:00:16.3]} 25... Rfb8 {[%clk 0:00:45.7]} 26. b3
{[%clk 0:00:16.3]} 26... h6 {[%clk 0:00:42.6]} 27. Qc3 {[%clk 0:00:15.8]} 27...
Qb6 {[%clk 0:00:33.2]} 28. Rhd1 {[%clk 0:00:14.9]} 28... Rxe4 {[%clk 0:00:32.7]}
29. Rd6 {[%clk 0:00:12.5]} 29... Qb4 {[%clk 0:00:24.7]} 30. Qc7 {[%clk
0:00:11.6]} 30... Re3 {[%clk 0:00:20.4]} 31. Rd8+ {[%clk 0:00:11]} 31... Rxd8
{[%clk 0:00:20.8]} 32. Rxd8+ {[%clk 0:00:10.3]} 32... Kh7 {[%clk 0:00:21.7]} 0-1

[Event "*** SCC Grand Prix: Titled Tuesday Blitz"]
[Site "Chess.com"]
[Date "2020.08.11"]
[Round "6"]
[White "Terao90"]
[Black "GlennTipton"]
[Result "1-0"]
[WhiteElo "2339"]
[BlackElo "2443"]
[TimeControl "180+1"]
[EndTime "11:06:50 PDT"]
[Termination "Terao90 won on time"]

1. e4 {[%clk 0:03:00.9]} 1... e5 {[%clk 0:02:59.5]} 2. Nc3 {[%clk 0:02:58.5]}
2... Nf6 {[%clk 0:02:58.3]} 3. Bc4 {[%clk 0:02:56.4]} 3... Nc6 {[%clk
0:02:57.6]} 4. d3 {[%clk 0:02:55.8]} 4... Na5 {[%clk 0:02:57.6]} 5. Qf3 {[%clk
0:02:53.3]} 5... Nxc4 {[%clk 0:02:56.8]} 6. dxc4 {[%clk 0:02:54.1]} 6... d6
{[%clk 0:02:55.6]} 7. h3 {[%clk 0:02:50.3]} 7... Be6 {[%clk 0:02:55.4]} 8. b3
{[%clk 0:02:49.4]} 8... c6 {[%clk 0:02:55.3]} 9. Nge2 {[%clk 0:02:49.1]} 9... d5
{[%clk 0:02:55.5]} 10. exd5 {[%clk 0:02:44.4]} 10... cxd5 {[%clk 0:02:56.4]} 11.
cxd5 {[%clk 0:02:41.7]} 11... Nxd5 {[%clk 0:02:56]} 12. O-O {[%clk 0:02:29.4]}
12... Nxc3 {[%clk 0:02:55.2]} 13. Nxc3 {[%clk 0:02:26.9]} 13... Qc8 {[%clk
0:02:47.3]} 14. Nd5 {[%clk 0:02:00.3]} 14... Bd6 {[%clk 0:02:37.3]} 15. c4
{[%clk 0:01:52.6]} 15... O-O {[%clk 0:02:31.1]} 16. Bb2 {[%clk 0:01:49.1]} 16...
Qc6 {[%clk 0:02:25.2]} 17. Rad1 {[%clk 0:01:41.5]} 17... Rad8 {[%clk 0:02:11.8]}
18. Qg3 {[%clk 0:01:39.2]} 18... f6 {[%clk 0:02:03.6]} 19. Rd2 {[%clk
0:01:18.6]} 19... Kh8 {[%clk 0:01:43]} 20. Rfd1 {[%clk 0:01:15.8]} 20... Bb8
{[%clk 0:01:20.4]} 21. a4 {[%clk 0:01:05.5]} 21... Rd7 {[%clk 0:01:06.9]} 22.
Nb4 {[%clk 0:00:53.2]} 22... Rxd2 {[%clk 0:01:00.1]} 23. Rxd2 {[%clk 0:00:54.1]}
23... Qb6 {[%clk 0:00:50]} 24. Ba3 {[%clk 0:00:53.1]} 24... Rd8 {[%clk
0:00:48.2]} 25. Rxd8+ {[%clk 0:00:22.4]} 25... Qxd8 {[%clk 0:00:47.9]} 26. Qd3
{[%clk 0:00:23.3]} 26... Qxd3 {[%clk 0:00:42.4]} 27. Nxd3 {[%clk 0:00:24.2]} 1-0

[Event "*** SCC Grand Prix: Titled Tuesday Blitz"]
[Site "Chess.com"]
[Date "2020.08.11"]
[Round "6"]
[White "Colchonero64"]
[Black "BocharovD"]
[Result "1/2-1/2"]
[WhiteElo "2907"]
[BlackElo "2701"]
[TimeControl "180+1"]
[EndTime "11:06:57 PDT"]
[Termination "Game drawn by repetition"]

1. e4 {[%clk 0:03:00.9]} 1... c5 {[%clk 0:02:59]} 2. Nf3 {[%clk 0:03:00.4]} 2...
d6 {[%clk 0:02:58.4]} 3. d4 {[%clk 0:02:58.5]} 3... cxd4 {[%clk 0:02:58.3]} 4.
Nxd4 {[%clk 0:02:58.6]} 4... Nf6 {[%clk 0:02:58.9]} 5. Nc3 {[%clk 0:02:58.8]}
5... a6 {[%clk 0:02:59.4]} 6. g3 {[%clk 0:02:55.4]} 6... e6 {[%clk 0:02:55.9]}
7. Bg2 {[%clk 0:02:54.5]} 7... Be7 {[%clk 0:02:56.4]} 8. O-O {[%clk 0:02:53.7]}
8... O-O {[%clk 0:02:56.6]} 9. Be3 {[%clk 0:02:52.9]} 9... Nc6 {[%clk 0:02:56]}
10. a4 {[%clk 0:02:47.3]} 10... Qc7 {[%clk 0:02:54.4]} 11. Nxc6 {[%clk
0:02:25.7]} 11... bxc6 {[%clk 0:02:52.5]} 12. a5 {[%clk 0:02:25.9]} 12... Bb7
{[%clk 0:02:42.4]} 13. Bb6 {[%clk 0:02:15.4]} 13... Qc8 {[%clk 0:02:41.7]} 14.
Be3 {[%clk 0:02:03.9]} 14... c5 {[%clk 0:02:28.4]} 15. Na4 {[%clk 0:01:55.8]}
15... Qc7 {[%clk 0:02:23.7]} 16. Nb6 {[%clk 0:01:53.3]} 16... Rad8 {[%clk
0:02:20.1]} 17. Qd3 {[%clk 0:01:49.1]} 17... Nd7 {[%clk 0:02:01.8]} 18. Nxd7
{[%clk 0:01:42.4]} 18... Rxd7 {[%clk 0:02:01.5]} 19. Rfd1 {[%clk 0:01:42.3]}
19... Rb8 {[%clk 0:01:44.6]} 20. Bf4 {[%clk 0:01:36.8]} 20... Bc6 {[%clk
0:01:37.8]} 21. b3 {[%clk 0:01:21.4]} 21... Rb5 {[%clk 0:01:30]} 22. h4 {[%clk
0:01:07.4]} 22... Rxa5 {[%clk 0:01:15.3]} 23. Bd2 {[%clk 0:01:07]} 23... Rxa1
{[%clk 0:01:13.9]} 24. Rxa1 {[%clk 0:01:07.1]} 24... Bb7 {[%clk 0:01:13.2]} 25.
Ba5 {[%clk 0:01:03.2]} 25... Qc8 {[%clk 0:01:12.4]} 26. c4 {[%clk 0:01:01.7]}
26... Bf6 {[%clk 0:01:10.4]} 27. Bc3 {[%clk 0:01:01.8]} 27... Bxc3 {[%clk
0:01:09.4]} 28. Qxc3 {[%clk 0:01:02.7]} 28... Qc7 {[%clk 0:01:06.9]} 29. f4
{[%clk 0:00:59.4]} 29... Rd8 {[%clk 0:01:04.2]} 30. Rd1 {[%clk 0:00:57.5]} 30...
h6 {[%clk 0:01:02]} 31. Rd3 {[%clk 0:00:56.8]} 31... Bc6 {[%clk 0:00:58]} 32.
Qd2 {[%clk 0:00:56.3]} 32... Qb7 {[%clk 0:00:52.1]} 33. Rxd6 {[%clk 0:00:52.4]}
33... Rxd6 {[%clk 0:00:45.9]} 34. Qxd6 {[%clk 0:00:53.3]} 34... Bxe4 {[%clk
0:00:37.5]} 35. Bxe4 {[%clk 0:00:53]} 35... Qxe4 {[%clk 0:00:37.5]} 36. Qxc5
{[%clk 0:00:52.9]} 36... Qb1+ {[%clk 0:00:34.8]} 37. Kh2 {[%clk 0:00:47.6]}
37... Qxb3 {[%clk 0:00:32.1]} 38. Qc8+ {[%clk 0:00:46.3]} 38... Kh7 {[%clk
0:00:32.2]} 39. Qxa6 {[%clk 0:00:46.1]} 39... Qc2+ {[%clk 0:00:29.2]} 40. Kg1
{[%clk 0:00:46]} 40... Qd1+ {[%clk 0:00:28.5]} 41. Kf2 {[%clk 0:00:45.4]} 41...
Qd2+ {[%clk 0:00:28.9]} 42. Kf3 {[%clk 0:00:43.4]} 42... Qd3+ {[%clk 0:00:26.9]}
43. Kf2 {[%clk 0:00:43.5]} 43... Qd2+ {[%clk 0:00:20.1]} 44. Kf3 {[%clk
0:00:42.9]} 44... Qd3+ {[%clk 0:00:17.7]} 45. Kf2 {[%clk 0:00:42.7]} 45... Qd2+
{[%clk 0:00:15]} 1/2-1/2

[Event "*** SCC Grand Prix: Titled Tuesday Blitz"]
[Site "Chess.com"]
[Date "2020.08.11"]
[Round "6"]
[White "Ermito2020"]
[Black "ExtremeLearner"]
[Result "0-1"]
[WhiteElo "2620"]
[BlackElo "2355"]
[TimeControl "180+1"]
[EndTime "11:06:59 PDT"]
[Termination "ExtremeLearner won by checkmate"]

1. e4 {[%clk 0:03:00.9]} 1... c6 {[%clk 0:02:59.5]} 2. d4 {[%clk 0:03:00.2]}
2... d5 {[%clk 0:02:57.3]} 3. e5 {[%clk 0:03:00.6]} 3... Bf5 {[%clk 0:02:56.8]}
4. Nf3 {[%clk 0:03:01]} 4... e6 {[%clk 0:02:56.9]} 5. Be2 {[%clk 0:03:01.5]}
5... c5 {[%clk 0:02:55.3]} 6. Be3 {[%clk 0:03:01.1]} 6... Qb6 {[%clk 0:02:40]}
7. Nc3 {[%clk 0:03:00.9]} 7... Nd7 {[%clk 0:02:27.2]} 8. O-O {[%clk 0:02:57.4]}
8... Rc8 {[%clk 0:01:31.7]} 9. Na4 {[%clk 0:02:50.4]} 9... Qa5 {[%clk
0:01:28.8]} 10. c4 {[%clk 0:02:20.4]} 10... dxc4 {[%clk 0:01:00]} 11. Nxc5
{[%clk 0:02:19.4]} 11... Nxc5 {[%clk 0:00:59.6]} 12. dxc5 {[%clk 0:02:20.3]}
12... Bxc5 {[%clk 0:00:58.8]} 13. Bxc5 {[%clk 0:02:17]} 13... Qxc5 {[%clk
0:00:59.7]} 14. Rc1 {[%clk 0:02:16.6]} 14... b5 {[%clk 0:00:58.6]} 15. b3 {[%clk
0:02:07.8]} 15... c3 {[%clk 0:00:54.8]} 16. Nd4 {[%clk 0:02:07.8]} 16... b4
{[%clk 0:00:51.2]} 17. Bb5+ {[%clk 0:02:00.2]} 17... Kf8 {[%clk 0:00:47.6]} 18.
Nxf5 {[%clk 0:01:59.2]} 18... exf5 {[%clk 0:00:46.7]} 19. Qd7 {[%clk 0:01:55]}
19... Ne7 {[%clk 0:00:43.9]} 20. Rfd1 {[%clk 0:01:54.8]} 20... g6 {[%clk
0:00:42.3]} 21. Ba6 {[%clk 0:01:46.5]} 21... Rc7 {[%clk 0:00:37.8]} 22. Qd6
{[%clk 0:01:42.5]} 22... Rc6 {[%clk 0:00:30.3]} 23. Qxc5 {[%clk 0:01:21.4]}
23... Rxc5 {[%clk 0:00:31.2]} 24. Rd7 {[%clk 0:01:20.8]} 24... Rxe5 {[%clk
0:00:24.9]} 25. f4 {[%clk 0:01:16.1]} 25... Re4 {[%clk 0:00:23.7]} 26. Rxa7
{[%clk 0:01:01.4]} 26... Nc6 {[%clk 0:00:14]} 27. Rc7 {[%clk 0:00:57.2]} 27...
Nd4 {[%clk 0:00:13.6]} 28. Kf2 {[%clk 0:00:56.7]} 28... Kg7 {[%clk 0:00:13.2]}
29. Bc4 {[%clk 0:00:55.3]} 29... Rxf4+ {[%clk 0:00:09.7]} 30. Ke3 {[%clk
0:00:53.5]} 30... Re4+ {[%clk 0:00:09.9]} 31. Kd3 {[%clk 0:00:54.1]} 31... Ne6
{[%clk 0:00:10.2]} 32. Rd7 {[%clk 0:00:49.2]} 32... Rc8 {[%clk 0:00:08]} 33. a3
{[%clk 0:00:43]} 33... Nc5+ {[%clk 0:00:08.1]} 34. Kc2 {[%clk 0:00:42.8]} 34...
Nxd7 {[%clk 0:00:08.7]} 35. axb4 {[%clk 0:00:43.7]} 35... Ne5 {[%clk 0:00:08.1]}
36. Kxc3 {[%clk 0:00:43.7]} 36... Nxc4 {[%clk 0:00:08.2]} 37. Ra1 {[%clk
0:00:44.2]} 37... Nb6+ {[%clk 0:00:07.9]} 38. Kd3 {[%clk 0:00:44.4]} 38... Rd8+
{[%clk 0:00:08.1]} 39. Kc3 {[%clk 0:00:44.8]} 39... Re3+ {[%clk 0:00:08.6]} 40.
Kc2 {[%clk 0:00:43.9]} 40... Nd5 {[%clk 0:00:09.1]} 41. b5 {[%clk 0:00:41.7]}
41... Nb4+ {[%clk 0:00:09.1]} 42. Kb2 {[%clk 0:00:42.2]} 42... Rd2+ {[%clk
0:00:09.1]} 43. Ka3 {[%clk 0:00:42.4]} 43... Nc2+ {[%clk 0:00:09.3]} 44. Kb2
{[%clk 0:00:41.2]} 44... Nxa1+ {[%clk 0:00:10.2]} 45. Kxa1 {[%clk 0:00:37.6]}
45... Re1# {[%clk 0:00:09.8]} 0-1

[Event "*** SCC Grand Prix: Titled Tuesday Blitz"]
[Site "Chess.com"]
[Date "2020.08.11"]
[Round "6"]
[White "serena-maria"]
[Black "Kavyev_Ruslan"]
[Result "0-1"]
[WhiteElo "2277"]
[BlackElo "2452"]
[TimeControl "180+1"]
[EndTime "11:07:00 PDT"]
[Termination "Kavyev_Ruslan won on time"]

1. Nf3 {[%clk 0:02:53.7]} 1... Nf6 {[%clk 0:02:59.2]} 2. g3 {[%clk 0:02:54.1]}
2... g6 {[%clk 0:02:55.9]} 3. Bg2 {[%clk 0:02:54.5]} 3... Bg7 {[%clk 0:02:56.5]}
4. O-O {[%clk 0:02:54.8]} 4... O-O {[%clk 0:02:57.2]} 5. c4 {[%clk 0:02:55.3]}
5... c6 {[%clk 0:02:56.7]} 6. Nc3 {[%clk 0:02:52.9]} 6... d5 {[%clk 0:02:56.7]}
7. cxd5 {[%clk 0:02:53.8]} 7... cxd5 {[%clk 0:02:57.6]} 8. d4 {[%clk 0:02:54.3]}
8... Ne4 {[%clk 0:02:58.1]} 9. Ne5 {[%clk 0:02:54.3]} 9... Nxc3 {[%clk
0:02:57.9]} 10. bxc3 {[%clk 0:02:55.2]} 10... Nc6 {[%clk 0:02:58.7]} 11. Nxc6
{[%clk 0:02:55.5]} 11... bxc6 {[%clk 0:02:59.6]} 12. Qa4 {[%clk 0:02:55.8]}
12... Qb6 {[%clk 0:03:00]} 13. Ba3 {[%clk 0:02:55.2]} 13... Qa6 {[%clk
0:03:00.6]} 14. Qxa6 {[%clk 0:02:55.6]} 14... Bxa6 {[%clk 0:03:01.5]} 15. Rfb1
{[%clk 0:02:55.9]} 15... Bxe2 {[%clk 0:02:40.3]} 16. Bxe7 {[%clk 0:02:48.2]}
16... Rfe8 {[%clk 0:02:40.1]} 17. Bc5 {[%clk 0:02:44.7]} 17... Bc4 {[%clk
0:02:33.8]} 18. Bf1 {[%clk 0:02:42.9]} 18... Bxf1 {[%clk 0:02:28.9]} 19. Kxf1
{[%clk 0:02:43.8]} 19... Bf8 {[%clk 0:02:27.4]} 20. Bxf8 {[%clk 0:02:40.6]}
20... Kxf8 {[%clk 0:02:28.3]} 21. Rb7 {[%clk 0:02:40.4]} 21... Re7 {[%clk
0:02:26.6]} 22. Rab1 {[%clk 0:02:38.9]} 22... Rae8 {[%clk 0:02:26.7]} 23. a4
{[%clk 0:02:32.7]} 23... Rxb7 {[%clk 0:02:25.2]} 24. Rxb7 {[%clk 0:02:31.8]}
24... Re7 {[%clk 0:02:26.1]} 25. Rb8+ {[%clk 0:02:14.9]} 25... Re8 {[%clk
0:02:26.1]} 26. Rb2 {[%clk 0:02:10.5]} 26... Re7 {[%clk 0:02:12.7]} 27. a5
{[%clk 0:02:08.3]} 27... Rc7 {[%clk 0:02:09.2]} 28. Ke2 {[%clk 0:01:25.8]} 28...
Ke7 {[%clk 0:02:09.5]} 29. a6 {[%clk 0:01:13.2]} 29... Kd6 {[%clk 0:02:09.3]}
30. Ke3 {[%clk 0:01:10.9]} 30... c5 {[%clk 0:02:07.6]} 31. Kf4 {[%clk
0:00:20.6]} 31... f6 {[%clk 0:02:01.9]} 32. Ke3 {[%clk 0:00:07.7]} 32... Rc6
{[%clk 0:01:59.6]} 33. dxc5+ {[%clk 0:00:04.1]} 33... Kxc5 {[%clk 0:01:59.4]}
34. Rb7 {[%clk 0:00:04]} 34... Rxa6 {[%clk 0:01:59.6]} 35. Rxh7 {[%clk
0:00:04.4]} 35... Ra3 {[%clk 0:01:59.8]} 36. Kd3 {[%clk 0:00:03.1]} 36... d4
{[%clk 0:01:56.8]} 37. Rc7+ {[%clk 0:00:03.5]} 37... Kd6 {[%clk 0:01:57.2]} 38.
Rf7 {[%clk 0:00:02.2]} 38... Ke6 {[%clk 0:01:53.8]} 39. Rg7 {[%clk 0:00:02.1]}
39... Rxc3+ {[%clk 0:01:44.3]} 40. Kxd4 {[%clk 0:00:01.6]} 40... Rc2 {[%clk
0:01:44]} 41. Rxa7 {[%clk 0:00:01.4]} 41... Rxf2 {[%clk 0:01:44]} 42. Ra6+
{[%clk 0:00:02]} 42... Kf5 {[%clk 0:01:43.7]} 43. h3 {[%clk 0:00:02.5]} 43...
Rf3 {[%clk 0:01:37.2]} 44. Ra5+ {[%clk 0:00:03]} 44... Ke6 {[%clk 0:01:36.4]}
45. Ra6+ {[%clk 0:00:03.6]} 45... Kf7 {[%clk 0:01:36.4]} 46. Ra7+ {[%clk
0:00:03.9]} 46... Kg8 {[%clk 0:01:36.9]} 47. Ra8+ {[%clk 0:00:03]} 47... Kg7
{[%clk 0:01:37.2]} 48. Ra7+ {[%clk 0:00:03.5]} 48... Kh6 {[%clk 0:01:37.7]} 49.
Ke4 {[%clk 0:00:03.6]} 49... Rxg3 {[%clk 0:01:37.4]} 50. Ra6 {[%clk 0:00:02.2]}
50... f5+ {[%clk 0:01:37.2]} 51. Kf4 {[%clk 0:00:02.1]} 51... Rxh3 {[%clk
0:01:38.1]} 52. Ra8 {[%clk 0:00:01.5]} 52... Rh4+ {[%clk 0:01:38.1]} 53. Kg3
{[%clk 0:00:02]} 53... Rg4+ {[%clk 0:01:38.7]} 54. Kf3 {[%clk 0:00:02.7]} 54...
Kg5 {[%clk 0:01:39.6]} 55. Rb8 {[%clk 0:00:02.8]} 55... Rh4 {[%clk 0:01:39.4]}
56. Kg3 {[%clk 0:00:03.2]} 56... Ra4 {[%clk 0:01:39.6]} 57. Kf3 {[%clk
0:00:03.7]} 57... Ra3+ {[%clk 0:01:39.9]} 58. Kg2 {[%clk 0:00:04.3]} 58... Kg4
{[%clk 0:01:39.2]} 59. Rb6 {[%clk 0:00:04.9]} 59... g5 {[%clk 0:01:39.3]} 60.
Rb4+ {[%clk 0:00:05.6]} 60... f4 {[%clk 0:01:39.8]} 61. Rb8 {[%clk 0:00:06.5]}
61... Ra2+ {[%clk 0:01:40]} 62. Kg1 {[%clk 0:00:06.8]} 62... Kg3 {[%clk
0:01:40.6]} 63. Rb3+ {[%clk 0:00:07.1]} 63... f3 {[%clk 0:01:41.1]} 64. Rb1
{[%clk 0:00:08]} 64... g4 {[%clk 0:01:41.1]} 65. Kh1 {[%clk 0:00:08.3]} 65...
Rh2+ {[%clk 0:01:40.3]} 66. Kg1 {[%clk 0:00:08.4]} 66... f2+ {[%clk 0:01:41]}
0-1

[Event "*** SCC Grand Prix: Titled Tuesday Blitz"]
[Site "Chess.com"]
[Date "2020.08.11"]
[Round "6"]
[White "KaspMagAlpha"]
[Black "Monmoransy"]
[Result "0-1"]
[WhiteElo "2179"]
[BlackElo "2648"]
[TimeControl "180+1"]
[EndTime "11:07:01 PDT"]
[Termination "Monmoransy won by checkmate"]

1. d4 {[%clk 0:02:56.8]} 1... d5 {[%clk 0:02:58.9]} 2. c4 {[%clk 0:02:53]} 2...
dxc4 {[%clk 0:02:59.8]} 3. e3 {[%clk 0:02:52.7]} 3... e5 {[%clk 0:02:59.8]} 4.
Bxc4 {[%clk 0:02:52.3]} 4... exd4 {[%clk 0:03:00.7]} 5. Qb3 {[%clk 0:02:52.1]}
5... Qe7 {[%clk 0:02:57.1]} 6. Nf3 {[%clk 0:02:51.3]} 6... Qb4+ {[%clk
0:02:55.4]} 7. Nbd2 {[%clk 0:02:49.3]} 7... Qxb3 {[%clk 0:02:53.4]} 8. Nxb3
{[%clk 0:02:47.9]} 8... dxe3 {[%clk 0:02:53.2]} 9. Bxe3 {[%clk 0:02:47.5]} 9...
Bb4+ {[%clk 0:02:48]} 10. Kf1 {[%clk 0:02:40]} 10... Ne7 {[%clk 0:02:45.1]} 11.
a3 {[%clk 0:02:36.9]} 11... Bd6 {[%clk 0:02:43.9]} 12. h4 {[%clk 0:02:30]} 12...
O-O {[%clk 0:02:40.3]} 13. Rg1 {[%clk 0:02:08.3]} 13... Nbc6 {[%clk 0:02:35.9]}
14. g4 {[%clk 0:02:07]} 14... a6 {[%clk 0:02:10.4]} 15. Nbd4 {[%clk 0:02:00.4]}
15... Nxd4 {[%clk 0:02:07.6]} 16. Nxd4 {[%clk 0:02:00.1]} 16... b5 {[%clk
0:02:05.2]} 17. Bd3 {[%clk 0:01:58.9]} 17... Bb7 {[%clk 0:02:04.1]} 18. b4
{[%clk 0:01:53.4]} 18... Bh2 {[%clk 0:02:03.1]} 19. Rc1 {[%clk 0:01:37.3]} 19...
Bxg1 {[%clk 0:01:59.2]} 20. Kxg1 {[%clk 0:01:37.3]} 20... Nd5 {[%clk 0:01:57.8]}
21. Bd2 {[%clk 0:01:34.6]} 21... Rad8 {[%clk 0:01:51.2]} 22. Be4 {[%clk
0:01:18.4]} 22... Rfe8 {[%clk 0:01:43]} 23. f3 {[%clk 0:01:16.9]} 23... Ba8
{[%clk 0:01:37.1]} 24. Nf5 {[%clk 0:01:10.3]} 24... Ne7 {[%clk 0:01:20.1]} 25.
Nxe7+ {[%clk 0:00:48.1]} 25... Rxe7 {[%clk 0:01:19.1]} 26. Bg5 {[%clk
0:00:36.4]} 26... f6 {[%clk 0:01:16.1]} 27. Bxa8 {[%clk 0:00:30.5]} 27... fxg5
{[%clk 0:01:11.1]} 28. Bb7 {[%clk 0:00:27]} 28... gxh4 {[%clk 0:01:09.5]} 29.
Bxa6 {[%clk 0:00:26.8]} 29... Rd2 {[%clk 0:00:49.9]} 30. Bxb5 {[%clk 0:00:26.1]}
30... h3 {[%clk 0:00:43.8]} 31. Bc4+ {[%clk 0:00:22.8]} 31... Kf8 {[%clk
0:00:42.2]} 32. a4 {[%clk 0:00:22.2]} 32... Re3 {[%clk 0:00:40.1]} 33. a5 {[%clk
0:00:11.3]} 33... Rxf3 {[%clk 0:00:38]} 34. a6 {[%clk 0:00:11.7]} 34... Rff2
{[%clk 0:00:29.4]} 35. a7 {[%clk 0:00:08.2]} 35... Rg2+ {[%clk 0:00:22.7]} 36.
Kh1 {[%clk 0:00:08.2]} 36... Rh2+ {[%clk 0:00:21.1]} 37. Kg1 {[%clk 0:00:08.1]}
37... Rdg2+ {[%clk 0:00:21.6]} 38. Kf1 {[%clk 0:00:07.8]} 38... Rh1# {[%clk
0:00:22]} 0-1

[Event "*** SCC Grand Prix: Titled Tuesday Blitz"]
[Site "Chess.com"]
[Date "2020.08.11"]
[Round "6"]
[White "Unknown_IM"]
[Black "czasnaszachy"]
[Result "0-1"]
[WhiteElo "2374"]
[BlackElo "2229"]
[TimeControl "180+1"]
[EndTime "11:07:03 PDT"]
[Termination "czasnaszachy won on time"]

1. Nf3 {[%clk 0:03:00.9]} 1... Nf6 {[%clk 0:02:58.4]} 2. c4 {[%clk 0:03:01]}
2... g6 {[%clk 0:02:58.1]} 3. d4 {[%clk 0:03:00.7]} 3... c5 {[%clk 0:02:51.5]}
4. Nc3 {[%clk 0:02:57.1]} 4... cxd4 {[%clk 0:02:47.5]} 5. Nxd4 {[%clk
0:02:55.8]} 5... Bg7 {[%clk 0:02:48.2]} 6. e4 {[%clk 0:02:55.6]} 6... d6 {[%clk
0:02:47.5]} 7. Be2 {[%clk 0:02:54.7]} 7... O-O {[%clk 0:02:45.1]} 8. O-O {[%clk
0:02:53.1]} 8... Nc6 {[%clk 0:02:44.6]} 9. Be3 {[%clk 0:02:53.7]} 9... Bd7
{[%clk 0:02:33.4]} 10. Nc2 {[%clk 0:02:52.7]} 10... Rc8 {[%clk 0:02:20.8]} 11.
f3 {[%clk 0:02:48.7]} 11... Be6 {[%clk 0:01:55.3]} 12. Qd2 {[%clk 0:02:45.8]}
12... Ne5 {[%clk 0:01:53.5]} 13. b3 {[%clk 0:02:45.5]} 13... a6 {[%clk
0:01:48.6]} 14. Rac1 {[%clk 0:02:45.2]} 14... Qd7 {[%clk 0:01:44.9]} 15. Nd4
{[%clk 0:02:32.5]} 15... Nc6 {[%clk 0:01:31.3]} 16. Nxe6 {[%clk 0:02:26.8]}
16... Qxe6 {[%clk 0:01:27.6]} 17. Nd5 {[%clk 0:02:25.4]} 17... Nd7 {[%clk
0:01:17.5]} 18. Kh1 {[%clk 0:02:14.3]} 18... Rfe8 {[%clk 0:01:12.7]} 19. Bd3
{[%clk 0:02:02.6]} 19... Nc5 {[%clk 0:01:05.8]} 20. Bc2 {[%clk 0:01:50.3]} 20...
h5 {[%clk 0:00:47.2]} 21. Qf2 {[%clk 0:01:33.9]} 21... Nd7 {[%clk 0:00:44.5]}
22. f4 {[%clk 0:01:11.6]} 22... Qg4 {[%clk 0:00:31.9]} 23. h3 {[%clk 0:01:09.6]}
23... Qe6 {[%clk 0:00:29.7]} 24. f5 {[%clk 0:01:09.6]} 24... Qe5 {[%clk
0:00:20.5]} 25. fxg6 {[%clk 0:01:05.4]} 25... fxg6 {[%clk 0:00:20.3]} 26. Qf7+
{[%clk 0:01:05.5]} 26... Kh7 {[%clk 0:00:19.3]} 27. Bf4 {[%clk 0:01:05.8]} 27...
Qd4 {[%clk 0:00:09.8]} 28. Be3 {[%clk 0:00:31.5]} 28... Qe5 {[%clk 0:00:09.5]}
29. Bf4 {[%clk 0:00:10.7]} 29... Qd4 {[%clk 0:00:09.6]} 30. Qe6 {[%clk
0:00:09.4]} 30... Nc5 {[%clk 0:00:08.6]} 31. Qf7 {[%clk 0:00:04.1]} 31... Rf8
{[%clk 0:00:08.9]} 0-1